bitfinex/quotes_ETHUSD_20250413
["timestamp","ask_amount","ask_price","bid_price","bid_amount"]
[1744579744017,6.28585,1590.9,1590.5,6.28704]
[1744579744349,6.28585,1590.9,1590.4,6.28758]
[1744579744350,13.33903,1590.8,1590.4,6.28758]
[1744579744547,7.05257,1590.8,1590.4,6.28755]
[1744579744913,13.33903,1590.8,1590.5,6.28719]
[1744579745140,8.43410117,1590.8,1590.5,12.57438]
[1744579745336,2.14783117,1590.8,1590.5,12.63724872]
[1744579745549,2.14783117,1590.8,1590.5,12.57438]
[1744579746055,6.28578,1590.9,1590.6,6.28692]
[1744579746553,6.28578,1590.9,1590.6,6.28678]
[1744579747666,13.32319,1591.0,1590.6,6.28678]
[1744579747968,6.28579,1590.9,1590.5,7.07454]
[1744579748167,6.28631,1590.8,1590.5,0.7873]
[1744579748479,0.75187054,1590.9,1590.4,3.0]
[1744579748632,6.28694,1590.6,1590.3,7.09097]
[1744579748826,7.10134,1590.6,1590.3,0.8029]
[1744579749031,7.10134,1590.6,1590.2,11.77171532]
[1744579749230,7.10134,1590.6,1590.2,11.83457165]
[1744579749462,6.28694,1590.6,1590.3,6.28793]
[1744579749974,0.8144,1590.8,1590.4,0.86337624]
[1744579750127,0.8144,1590.8,1590.6,6.28688]
[1744579751364,7.942,1590.9,1590.7,6.28654]
[1744579752464,6.76615543,1591.0,1590.7,6.28654]
[1744579753378,13.05169543,1591.0,1590.7,6.28654]
[1744579753858,6.28544,1591.0,1590.7,6.28654]
[1744579754458,6.28581,1590.9,1590.6,12.57367]
[1744579754672,6.28581,1590.9,1590.7,1.257367]
[1744579754862,12.57101,1591.0,1590.7,1.257367]
[1744579755363,6.28539,1591.0,1590.7,1.257367]
[1744579755533,6.28539,1591.0,1590.7,7.543847]
[1744579758066,12.571,1591.0,1590.7,1.257367]
[1744579758259,6.28575,1590.9,1590.6,12.57356]
[1744579758474,6.28575,1590.9,1590.6,12.57353]
[1744579759883,6.28539,1591.0,1590.7,7.08693]
[1744579760180,6.28539,1591.0,1590.5,0.06286121]
[1744579760181,0.8144,1591.1,1590.5,7.15064121]
[1744579760486,6.28629,1590.8,1590.5,0.8005]
[1744579760686,6.28629,1590.8,1590.5,8.425379]
[1744579761084,6.28609,1590.9,1590.6,6.28691]
[1744579761378,7.09963,1591.1,1590.6,12.57367]
[1744579761582,6.28552,1591.0,1590.7,6.28652]
[1744579762551,0.8144,1591.1,1590.8,6.28584]
[1744579763780,7.09947,1591.1,1590.8,6.28584]
[1744579764453,6.28536,1591.0,1590.7,1.257328]
[1744579764699,6.28575,1590.9,1590.7,1.257328]
[1744579764893,6.28536,1591.0,1590.7,1.257328]
[1744579766173,12.57093,1591.0,1590.7,1.257328]
[1744579766574,6.28536,1591.0,1590.7,1.257328]
[1744579767297,12.57087,1591.0,1590.7,1.257328]
[1744579768775,6.28536,1591.0,1590.7,7.543838]
[1744579769164,6.28536,1591.0,1590.7,13.830238]
[1744579769365,6.28536,1591.0,1590.7,7.543728]
[1744579769565,6.28536,1591.0,1590.7,7.60657678]
[1744579769803,6.28536,1591.0,1590.8,0.76065768]
[1744579770595,7.09943,1591.1,1590.8,0.76065768]
[1744579771007,13.38456,1591.1,1590.8,0.76065768]
[1744579775605,13.38458,1591.1,1590.8,0.76065768]
[1744579777424,13.38458,1591.1,1590.7,6.34923868]
[1744579778104,6.28539,1591.0,1590.7,6.34923868]
[1744579779828,6.28575,1590.9,1590.6,11.77018532]
[1744579779994,6.28575,1590.9,1590.6,18.05698532]
[1744579780197,6.28539,1591.0,1590.7,1.80569853]
[1744579781028,12.57093,1591.0,1590.7,1.80569853]
[1744579781390,6.28539,1591.0,1590.7,8.09219853]
[1744579782430,12.57099,1591.0,1590.7,8.09219853]
[1744579785140,6.28539,1591.0,1590.7,8.09219853]
[1744579785315,12.57098,1591.0,1590.7,8.09219853]
[1744579786726,6.28539,1591.0,1590.7,8.09219853]
[1744579786932,6.28597,1590.9,1590.6,11.77013532]
[1744579787443,6.28597,1590.9,1590.6,18.05693532]
[1744579787760,6.28597,1590.9,1590.6,5.48333532]
[1744579788039,6.28654,1590.7,1590.6,5.48333532]
[1744579788822,6.28693,1590.6,1590.5,5.48333532]
[1744579791761,6.17,1590.8,1590.5,6.83545353]
[1744579791919,6.17,1590.8,1590.6,0.7699]
[1744579792120,12.45614,1590.8,1590.6,0.7699]
[1744579792423,12.45614,1590.8,1590.5,6.83552353]
[1744579793159,6.17,1590.8,1590.6,0.68355235]
[1744579794260,18.7427,1590.8,1590.6,0.68355235]
[1744579794410,12.45621,1590.8,1590.5,0.54833353]
[1744579794815,6.28621,1590.8,1590.5,6.83565353]
[1744579795752,6.28621,1590.8,1590.5,13.12285353]
[1744579796171,6.28621,1590.8,1590.5,6.83553353]
[1744579796474,6.28621,1590.8,1590.5,12.31886885]
[1744579796782,6.28621,1590.8,1590.6,1.23188689]
[1744579797000,7.06684,1590.7,1590.5,5.48333532]
[1744579797453,6.28693,1590.6,1590.5,5.48333532]
[1744579798071,12.57404,1590.6,1590.3,0.06286912]
[1744579798376,12.57404,1590.6,1590.2,25.94717532]
[1744579799192,6.28748,1590.5,1590.2,19.65869532]
[1744579799362,6.28748,1590.5,1590.3,1.96586953]
[1744579800382,6.28693,1590.6,1590.3,8.25393953]
[1744579800590,13.35365,1590.7,1590.3,14.60488447]
[1744579800780,13.35377,1590.7,1590.4,6.28769]
[1744579800978,6.28707,1590.6,1590.3,8.25393953]
[1744579801185,6.28707,1590.6,1590.4,0.82539395]
[1744579801496,12.57416,1590.6,1590.4,0.82539395]
[1744579803290,6.28733,1590.5,1590.3,1.96586953]
[1744579803495,6.28707,1590.6,1590.3,8.31663413]
[1744579803707,12.57418,1590.6,1590.3,8.31663413]
[1744579804208,12.57421,1590.6,1590.3,8.31663413]
[1744579804782,6.28707,1590.6,1590.3,8.31663413]
[1744579805510,12.57426,1590.6,1590.3,2.02874413]
[1744579805711,6.28735,1590.5,1590.3,2.02874413]
[1744579805870,6.28735,1590.5,1590.3,0.0628746]
[1744579807517,12.57499,1590.5,1590.2,13.37033532]
[1744579808009,7.05995,1590.4,1590.2,5.48333532]
[1744579808178,6.28812,1590.3,1590.2,5.48333532]
[1744579808502,6.28812,1590.3,1590.1,5.48333532]
[1744579809898,6.28851,1590.2,1590.1,5.48333532]
[1744579810903,12.57724,1590.2,1589.9,16.23767248]
[1744579811204,12.57724,1590.2,1589.9,3.18767864]
[1744579812393,7.10822,1590.1,1589.9,5.59167704]
[1744579812999,6.28892,1590.1,1589.9,5.59167704]
[1744579813394,6.28683,1590.7,1589.9,5.59167704]
[1744579813395,6.2882,1590.3,1590.0,7.05637]
[1744579813600,12.57654,1590.3,1590.0,7.05637]
[1744579814305,12.57654,1590.3,1590.0,0.7671]
[1744579814496,12.57654,1590.3,1590.0,2.6608857]
[1744579815006,12.57654,1590.3,1590.0,1.8937857]
[1744579815179,6.28858,1590.2,1589.9,8.66731864]
[1744579816778,12.57731,1590.2,1589.9,8.66731864]
[1744579817701,6.28858,1590.2,1589.9,8.66731864]
[1744579818011,6.28893,1590.1,1589.9,2.37777864]
[1744579818425,6.2893,1590.0,1589.9,2.37777864]
[1744579818658,8.320023,1590.0,1589.9,2.37777864]
[1744579818813,6.2901,1589.8,1589.6,0.0629]
[1744579819011,6.2901,1589.8,1589.5,12.58197532]
[1744579819206,6.2901,1589.8,1589.5,12.64487783]
[1744579819750,12.58037,1589.8,1589.5,12.64487783]
[1744579820045,6.2901,1589.8,1589.5,13.30650211]
[1744579820246,12.58036,1589.8,1589.5,6.9524596]
[1744579820420,6.2901,1589.8,1589.5,0.8075]
[1744579820750,6.29051,1589.7,1589.4,8.48333532]
[1744579820931,7.04422,1589.6,1589.4,5.48333532]
[1744579821343,13.33545,1589.6,1589.4,5.48333532]
[1744579821647,6.29128,1589.5,1589.4,5.48333532]
[1744579823940,6.29128,1589.5,1589.2,0.7949]
[1744579823941,12.5828,1589.5,1589.2,0.7949]
[1744579824515,6.29128,1589.5,1589.2,0.85781717]
[1744579824716,12.58275,1589.5,1589.2,0.85781717]
[1744579825046,12.58276,1589.5,1589.2,0.85781717]
[1744579825631,12.58276,1589.5,1589.2,0.7949]
[1744579825832,6.29128,1589.5,1589.2,7.08726]
[1744579826029,6.29128,1589.5,1589.2,7.15017718]
[1744579826826,12.58288,1589.5,1589.1,6.3127]
[1744579827072,14.0498225,1589.5,1589.1,6.3127]
[1744579827970,7.7582225,1589.5,1589.1,6.3755872]
[1744579828639,1.4669425,1589.5,1589.2,6.29228]
[1744579828970,7.7583725,1589.5,1589.1,6.3757272]
[1744579829141,12.583,1589.5,1589.1,12.6684172]
[1744579830736,12.583,1589.5,1589.1,6.31269]
[1744579831187,7.04474,1589.4,1589.1,0.02]
[1744579831557,6.2923,1589.3,1589.1,0.02]
[1744579831879,6.29247,1589.2,1589.1,0.02]
[1744579832061,7.550947,1589.2,1589.1,0.02]
[1744579833467,6.29247,1589.2,1589.1,0.02]
[1744579833682,6.2923,1589.3,1589.1,0.02]
[1744579834078,12.58466,1589.3,1589.1,0.02]
[1744579834276,6.2923,1589.3,1589.1,0.02]
[1744579834785,7.04435,1589.5,1589.1,6.31269]
[1744579834988,8.290442,1589.5,1589.1,12.60544]
[1744579836198,18.75204,1589.6,1589.2,6.35523869]
[1744579836394,18.75204,1589.6,1589.3,6.29183]
[1744579836395,0.7608,1589.6,1589.3,6.29183]
[1744579836570,14.91532,1589.7,1589.3,13.40675]
[1744579836769,17.035869,1589.7,1589.3,13.40675]
[1744579837161,13.22057,1589.9,1589.5,6.29106]
[1744579837394,7.05057,1589.9,1589.6,6.29069]
[1744579837587,7.04974,1590.1,1589.6,0.8858998]
[1744579837891,7.04974,1590.1,1589.7,6.29036]
[1744579838080,13.1946996,1590.1,1589.7,6.29036]
[1744579838485,6.28943,1590.0,1589.6,12.58156]
[1744579838794,6.28943,1590.0,1589.7,7.17637545]
[1744579841396,12.57892,1590.0,1589.7,0.88589545]
[1744579841597,12.57892,1590.0,1589.7,0.823]
[1744579842386,6.28975,1589.9,1589.6,6.2907]
[1744579844795,6.28975,1589.9,1589.6,12.58143]
[1744579844996,6.29078,1589.7,1589.3,11.57325006]
[1744579845168,12.58156,1589.7,1589.3,17.86516006]
[1744579845568,6.29078,1589.7,1589.4,6.35458776]
[1744579845896,6.29078,1589.7,1589.4,6.35446776]
[1744579846093,6.29091,1589.6,1589.4,0.06290776]
[1744579846309,7.627816,1589.7,1589.3,11.57328006]
[1744579846489,6.29103,1589.6,1589.3,0.7942]
[1744579846689,6.2918,1589.4,1589.1,12.37314006]
[1744579846999,6.29211,1589.3,1589.1,7.886]
[1744579847206,6.29247,1589.2,1589.1,0.02]
[1744579853225,7.04547,1589.2,1589.1,0.02]
[1744579860036,10.04547,1589.2,1589.1,0.02]
[1744579862542,10.50779553,1589.2,1589.1,0.02]
[1744579867915,10.50779553,1589.2,1589.1,1e-05]
[1744579868217,12.94437163,1589.2,1589.1,1e-05]
[1744579868608,17.98151169,1589.2,1589.1,1e-05]
[1744579868845,24.15151169,1589.2,1589.1,1e-05]
[1744579871761,19.66437163,1589.2,1589.1,1e-05]
[1744579871943,19.11437163,1589.2,1589.1,1e-05]
[1744579872822,18.36137163,1589.2,1589.1,1e-05]
[1744579876985,14.8990461,1589.2,1589.1,1e-05]
[1744579877282,0.01520447,1589.3,1589.2,0.8182]
[1744579878275,0.01520447,1589.3,1589.2,6.29247]
[1744579878458,0.01520447,1589.3,1589.2,10.11067]
[1744579878660,0.01520447,1589.3,1589.2,14.20988407]
[1744579879072,0.02562474,1589.5,1589.4,6.84168]
[1744579879276,0.02562474,1589.5,1589.4,12.14702006]
[1744579879605,12.57649,1590.3,1590.0,0.8182]
[1744579879758,7.841,1590.4,1590.1,6.28888]
[1744579879963,7.841,1590.4,1590.0,0.8182]
[1744579879964,6.28774,1590.4,1590.2,0.628888]
[1744579880166,6.28774,1590.4,1590.1,0.8182]
[1744579880382,12.45754,1590.5,1590.1,11.59410006]
[1744579880582,6.28654,1590.7,1590.3,6.28809]
[1744579880806,6.9938,1590.8,1590.4,7.06094]
[1744579880807,6.28617,1590.8,1590.4,7.06094]
[1744579881011,6.2858,1590.9,1590.4,7.01094]
[1744579881189,6.2858,1590.9,1590.5,0.701094]
[1744579881377,6.2858,1590.9,1590.5,13.33830939]
[1744579881702,6.2858,1590.9,1590.5,11.47540406]
[1744579881870,6.2858,1590.9,1590.5,11.53826788]
[1744579882519,6.28575,1590.9,1590.5,5.25109788]
[1744579882710,6.28575,1590.9,1590.5,11.53830788]
[1744579884214,6.28575,1590.9,1590.6,0.7734]
[1744579884911,12.57103,1591.0,1590.6,8.29150079]
[1744579885116,6.28536,1591.0,1590.6,8.29150079]
[1744579885433,6.28536,1591.0,1590.6,8.35436107]
[1744579886716,6.28478,1591.2,1590.8,0.766]
[1744579886937,6.28422,1591.3,1590.8,13.33807]
[1744579887113,12.56868,1591.3,1590.9,7.619447]
[1744579887318,6.28464,1591.2,1590.9,1.333807]
[1744579887519,6.28464,1591.2,1591.0,0.766]
[1744579887916,6.28377,1591.4,1591.0,0.766]
[1744579888118,12.56781,1591.4,1591.0,7.05134]
[1744579888319,6.28377,1591.4,1591.0,8.96713771]
[1744579888516,6.28377,1591.4,1591.0,2.68179771]
[1744579888720,6.28419,1591.3,1591.0,2.68179771]
[1744579889205,6.28299,1591.6,1591.2,6.28445]
[1744579889405,6.28261,1591.7,1591.3,7.05015]
[1744579890218,6.28261,1591.7,1591.3,8.38361]
[1744579891554,6.28261,1591.7,1591.4,0.766]
[1744579891745,6.2822,1591.8,1591.4,0.766]
[1744579892257,6.28145,1592.0,1591.7,0.766]
[1744579892417,6.28102,1592.1,1591.7,0.82881582]
[1744579892755,6.28102,1592.1,1591.7,7.11133582]
[1744579892959,6.30012,1592.4,1591.9,7.04754]
[1744579893270,0.02,1592.4,1592.1,6.28099]
[1744579893412,0.02,1592.4,1592.2,7.04643]
[1744579893883,0.02,1592.4,1592.2,7.04641]
[1744579894111,0.02,1592.4,1592.3,6.28022]
[1744579894314,0.02,1592.4,1592.3,11.53336006]
[1744579895147,0.02,1592.4,1592.3,7.04622]
[1744579896052,0.02,1592.4,1592.3,8.06940135]
[1744579896223,0.02,1592.4,1592.3,10.41785668]
[1744579896424,0.02,1592.4,1592.3,13.41785668]
[1744579896825,0.02,1592.4,1592.3,19.57785668]
[1744579897031,6.27684,1593.2,1592.8,7.04411]
[1744579897350,6.27684,1593.2,1592.9,0.0627697]
[1744579897549,6.27714,1593.1,1592.9,0.0627697]
[1744579897750,6.27714,1593.1,1592.8,0.766]
[1744579898822,6.27714,1593.1,1592.8,7.04419]
[1744579899017,13.181524,1593.2,1592.8,7.04419]
[1744579899234,6.27684,1593.2,1592.8,7.04403]
[1744579899432,6.27632,1593.3,1592.9,12.55557]
[1744579899619,6.29589,1593.4,1593.1,0.766]
[1744579900455,6.29589,1593.4,1593.1,7.04306]
[1744579901127,0.02,1593.4,1593.1,7.04294]
[1744579901327,0.02,1593.4,1593.1,8.374973]
[1744579901758,0.02,1593.4,1593.2,6.2764]
[1744579901929,0.02,1593.4,1593.3,0.06275272]
[1744579902556,0.02,1593.4,1593.2,6.2764]
[1744579902764,0.02,1593.4,1593.3,0.7865]
[1744579903834,6.27668,1593.2,1593.0,7.797]
[1744579904042,12.55369,1593.2,1593.0,7.797]
[1744579904247,6.27706,1593.1,1592.8,5.75233969]
[1744579904564,6.27706,1593.1,1592.8,12.03041969]
[1744579904863,6.27708,1593.1,1592.8,12.03041969]
[1744579905358,6.27782,1593.0,1592.8,0.7865]
[1744579905545,6.24905591,1592.8,1592.6,5.74283969]
[1744579906264,6.27864,1592.7,1592.6,0.777]
[1744579907239,6.27748,1593.0,1592.3,5.74283969]
[1744579907562,6.27748,1593.0,1592.3,0.777]
[1744579907563,6.27974,1592.5,1592.3,0.777]
[1744579907761,6.27982,1592.4,1592.3,0.777]
[1744579907932,6.28045,1592.3,1592.1,8.572]
[1744579908132,6.28061,1592.2,1592.1,8.572]
[1744579908346,6.28061,1592.2,1592.1,7.795]
[1744579908540,6.2814,1592.0,1591.9,0.777]
[1744579908745,6.28045,1592.3,1591.7,5.74283969]
[1744579908746,6.28197,1591.9,1591.7,5.74283969]
[1744579908944,6.28219,1591.8,1591.7,5.74283969]
[1744579909139,6.28219,1591.8,1591.7,0.777]
[1744579909734,6.28259,1591.7,1591.6,7.795]
[1744579910059,6.28298,1591.6,1591.5,0.777]
[1744579910264,6.28298,1591.6,1591.4,4.96583969]
[1744579910463,12.56699,1591.5,1591.3,4.96735184]
[1744579910766,6.28377,1591.4,1591.3,6.9219596]
[1744579911071,6.28377,1591.4,1591.3,0.777]
[1744579911281,12.56778,1591.4,1591.1,13.53883969]
[1744579911572,6.28338,1591.5,1591.1,13.53883969]
[1744579911760,12.56818,1591.4,1591.1,13.53883969]
[1744579911935,12.56818,1591.4,1591.1,15.52125366]
[1744579912834,6.28277,1591.7,1591.3,6.28392]
[1744579913037,6.28267,1591.7,1591.3,6.28392]
[1744579913249,6.28223,1591.8,1591.4,0.06282783]
[1744579913441,12.56394,1591.9,1591.5,7.06022]
[1744579913643,12.56394,1591.9,1591.5,7.77252478]
[1744579913889,6.2818,1591.9,1591.5,1.48930478]
[1744579914026,6.28298,1591.6,1591.5,0.777]
[1744579914231,6.28259,1591.7,1591.5,0.777]
[1744579914427,6.28241,1591.8,1591.5,0.777]
[1744579914670,6.28241,1591.8,1591.4,6.28346]
[1744579914871,6.28285,1591.7,1591.3,10.06103]
[1744579915174,12.56467,1591.8,1591.4,7.289713]
[1744579915689,0.46209222,1592.2,1591.4,1.006103]
[1744579915893,6.17,1592.5,1592.1,6.28084]
[1744579915894,6.27982,1592.5,1592.1,6.28084]
[1744579916035,6.27966,1592.5,1592.1,6.28084]
[1744579916240,6.27909,1592.6,1592.3,6.28019]
[1744579916443,6.27909,1592.6,1592.2,13.188914]
[1744579916656,6.27909,1592.6,1592.2,6.908434]
[1744579917283,6.27927,1592.6,1592.1,6.28098]
[1744579917451,12.56011,1592.4,1592.0,12.06516969]
[1744579917648,6.28002,1592.4,1592.0,12.06516969]
[1744579917984,6.27985,1592.4,1592.1,6.3436723]
[1744579918347,6.27985,1592.4,1592.0,12.06533969]
[1744579918688,12.5599,1592.4,1592.0,12.06533969]
[1744579918894,6.28022,1592.3,1592.0,5.78393969]
[1744579919282,9.27924,1592.6,1592.0,5.78393969]
[1744579919441,6.28021,1592.4,1592.0,5.78393969]
[1744579919857,6.28021,1592.4,1592.0,12.06532969]
[1744579920056,12.56029,1592.4,1592.0,12.06532969]
[1744579920274,6.28008,1592.4,1592.0,12.06520969]
[1744579920469,6.28008,1592.4,1592.0,18.34644969]
[1744579920660,6.28008,1592.4,1592.0,12.06517969]
[1744579921268,6.28008,1592.4,1592.0,18.34642969]
[1744579921677,7.05838,1592.7,1592.3,6.28021]
[1744579921893,6.27878,1592.7,1592.3,12.56024]
[1744579922991,7.772,1592.8,1592.5,6.27929]
[1744579923191,13.19904,1593.1,1592.7,6.2785]
[1744579923372,19.47648,1593.1,1592.7,6.2785]
[1744579923575,6.27747,1593.0,1592.7,6.34127998]
[1744579924194,13.19904,1593.1,1592.7,12.61972998]
[1744579924493,6.9219,1593.1,1592.8,6.27811]
[1744579924699,13.30482,1593.3,1592.9,6.27769]
[1744579924887,7.02821,1593.3,1592.9,12.55537]
[1744579925203,20.23694,1593.4,1593.0,12.55458]
[1744579925360,20.23694,1593.4,1593.0,6.27725]
[1744579925361,14.06694,1593.4,1593.0,6.27725]
[1744579925566,0.02,1593.4,1593.3,6.27628]
[1744579925883,0.02,1593.4,1593.2,6.2765]
[1744579926084,0.02,1593.4,1593.3,6.27628]
[1744579926272,0.02,1593.4,1593.3,6.82628]
[1744579927704,0.403347,1593.9,1593.8,6.27431]
[1744579928212,0.403347,1593.9,1593.7,0.7566]
[1744579928511,0.403347,1593.9,1593.8,6.27431]
[1744579928813,0.02,1594.4,1594.3,6.27234]
[1744579928978,0.02,1594.4,1594.2,6.27258]
[1744579929300,0.02,1594.4,1594.2,12.54509]
[1744579929515,0.02,1594.4,1594.2,6.27251]
[1744579929676,0.02,1594.4,1594.1,11.99546969]
[1744579929875,6.27255,1594.3,1594.1,5.72243969]
[1744579930075,0.02,1594.4,1594.1,0.7566]
[1744579930317,0.02,1594.4,1594.1,7.02957]
[1744579930487,0.02,1594.4,1594.2,6.27252]
[1744579930688,0.02,1594.4,1594.3,6.27234]
[1744579931284,0.02,1594.4,1594.2,6.27252]
[1744579931525,0.02,1594.4,1594.1,15.498627]
[1744579932021,0.02,1594.4,1594.2,0.06271539]
[1744579932225,0.02,1594.4,1594.2,7.82883724]
[1744579932603,6.29195,1594.4,1594.1,8.5226]
[1744579933207,6.2724,1594.3,1593.9,13.304]
[1744579933411,6.2724,1594.3,1593.9,0.7566]
[1744579933578,6.27234,1594.3,1593.9,0.7566]
[1744579933943,6.27306,1594.2,1593.9,0.7566]
[1744579934223,6.27316,1594.1,1593.9,0.7566]
[1744579934630,6.27279,1594.2,1593.9,6.2739]
[1744579934917,6.27279,1594.2,1593.9,6.33663259]
[1744579935222,0.02,1594.4,1594.3,9.82234]
[1744579935432,0.02,1594.4,1594.3,11.580874]
[1744579935612,0.02,1594.4,1594.3,11.64357764]
[1744579935801,0.02,1594.4,1594.3,11.580874]
[1744579936001,0.02,1594.4,1594.3,11.6435776]
[1744579936524,0.02,1594.4,1594.3,11.580874]
[1744579937387,6.27003,1594.9,1594.5,6.27134]
[1744579937725,6.27042,1594.8,1594.5,6.27134]
[1744579937922,6.27003,1594.9,1594.6,0.06270379]
[1744579938126,6.27003,1594.9,1594.6,6.27111]
[1744579938809,6.28804,1595.4,1594.8,0.7763]
[1744579939132,0.49055189,1596.4,1595.4,0.7763]
[1744579939314,12.52931,1596.3,1595.8,6.26629]
[1744579939516,6.26519,1596.2,1595.8,0.06265035]
[1744579939834,6.26628,1595.9,1595.6,0.7763]
[1744579939994,6.26785,1595.5,1595.2,0.7763]
[1744579940195,0.626628,1595.8,1595.0,0.7761]
[1744579940396,6.26881,1595.2,1594.7,7.71016698]
[1744579940632,6.26936,1595.1,1594.7,7.71019698]
[1744579940819,12.53886,1595.1,1594.7,0.7761]
[1744579941013,6.27008,1594.9,1594.5,64.89259479]
[1744579941312,6.27041,1594.8,1594.5,53.792]
[1744579941513,6.27041,1594.8,1594.4,14.80766]
[1744579941714,6.26998,1594.9,1594.5,0.0627038]
[1744579942028,6.27037,1594.8,1594.4,7.04785]
[1744579942393,0.47859431,1595.3,1595.0,5.48333532]
[1744579942592,6.26919,1595.1,1595.0,5.48333532]
[1744579943102,7.05094,1595.4,1595.0,5.48333532]
[1744579943505,7.05094,1595.4,1595.0,11.75289532]
[1744579943707,13.3193,1595.4,1595.0,5.48333532]
[1744579944003,12.53719,1595.3,1594.9,7.04608]
[1744579944325,6.26845,1595.3,1594.9,0.7761]
[1744579944536,6.26845,1595.3,1595.0,0.06268483]
[1744579944740,12.53718,1595.3,1595.0,0.06268483]
[1744579944894,12.53792,1595.2,1594.9,0.7761]
[1744579946035,6.26881,1595.2,1594.9,0.7761]
[1744579946716,12.53794,1595.2,1594.9,0.7761]
[1744579946926,6.26881,1595.2,1594.9,0.7761]
[1744579947549,12.53788,1595.2,1594.9,0.7761]
[1744579947899,6.26991,1595.0,1594.7,0.81]
[1744579948205,6.27038,1594.8,1594.7,0.06269525]
[1744579948408,6.27038,1594.8,1594.5,19.64767479]
[1744579948611,6.27038,1594.8,1594.5,8.547]
[1744579948827,6.27081,1594.7,1594.5,8.547]
[1744579949128,6.27131,1594.6,1594.3,1.792234]
[1744579949292,6.27081,1594.7,1594.4,0.06271059]
[1744579949293,6.2709,1594.7,1594.4,0.06271059]
[1744579949497,6.26998,1594.9,1594.4,0.06271059]
[1744579949744,6.27181,1594.5,1594.3,0.81]
[1744579950029,6.27155,1594.5,1593.9,11.10300479]
[1744579950200,6.27329,1594.1,1593.8,0.81]
[1744579950598,6.27199,1594.4,1593.5,0.76]
[1744579950599,3.7849,1594.4,1593.5,0.76]
[1744579950899,0.75,1595.0,1593.5,0.76]
[1744579950900,6.26919,1595.1,1594.4,6.27195]
[1744579951127,1.4576688,1595.1,1594.5,6.82139]
[1744579951326,6.26979,1595.0,1594.6,6.27094]
[1744579951640,6.27013,1594.9,1594.6,6.27094]
[1744579952002,6.27054,1594.8,1594.5,0.06270311]
[1744579952353,6.27054,1594.8,1594.5,6.27146]
[1744579953239,6.27054,1594.8,1594.4,6.27175]
[1744579953240,6.27054,1594.8,1594.4,12.54354]
[1744579953452,12.54028,1594.9,1594.5,6.27136]
[1744579953745,12.54019,1594.9,1594.5,6.27136]
[1744579954409,6.2706,1594.8,1594.4,9.15888648]
[1744579954647,6.2706,1594.8,1594.4,15.43063648]
[1744579955717,6.2706,1594.8,1594.4,6.27175]
[1744579956107,6.27104,1594.7,1594.3,19.59832479]
[1744579956617,12.54205,1594.7,1594.3,25.87040479]
[1744579957023,12.54205,1594.7,1594.3,19.59826479]
[1744579957935,6.27214,1594.4,1594.1,0.7737]
[1744579958249,6.27234,1594.3,1593.9,6.27383]
[1744579958450,6.27346,1594.1,1593.8,0.7737]
[1744579958653,6.27374,1594.0,1593.8,0.7737]
[1744579959114,6.27234,1594.3,1593.6,0.7737]
[1744579959115,6.27439,1593.8,1593.6,0.7737]
[1744579959309,6.27439,1593.8,1593.5,7.737]
[1744579959528,6.27486,1593.7,1593.4,0.7737]
[1744579959743,7.07848,1593.9,1593.4,0.7737]
[1744579959945,6.2748,1593.7,1593.4,7.04943]
[1744579960130,6.27495,1593.7,1593.4,0.7737]
[1744579960309,12.54987,1593.7,1593.4,0.7737]
[1744579960829,6.27515,1593.6,1593.4,0.7737]
[1744579961026,6.27435,1593.8,1593.4,7.04957]
[1744579961218,6.27435,1593.8,1593.4,7.754407]
[1744579961421,6.27477,1593.7,1593.4,7.754407]
[1744579961627,6.27477,1593.7,1593.4,7.81715595]
[1744579962030,6.27435,1593.8,1593.5,0.5]
[1744579962227,7.07834,1593.9,1593.5,6.77525]
[1744579962431,6.27394,1593.9,1593.5,6.77525]
[1744579962645,6.27394,1593.9,1593.6,6.27506]
[1744579963234,12.54579,1594.2,1593.8,6.27411]
[1744579963545,6.2728,1594.2,1593.9,6.27386]
[1744579963849,6.2728,1594.2,1593.9,0.06272967]
[1744579963850,12.54575,1594.2,1593.9,0.06272967]
[1744579964211,6.2728,1594.2,1593.9,0.06272967]
[1744579965111,6.27316,1594.1,1593.9,0.06272967]
[1744579965325,6.2728,1594.2,1593.9,0.06272967]
[1744579965664,6.2728,1594.2,1593.9,0.8313]
[1744579966162,6.27327,1594.1,1593.9,0.8313]
[1744579967762,6.27273,1594.2,1593.7,0.8313]
[1744579968058,6.27422,1593.9,1593.7,0.8313]
[1744579969955,6.27422,1593.9,1593.5,7.10676]
[1744579970163,6.27415,1593.9,1593.5,7.10664]
[1744579970347,6.2751,1593.6,1593.4,7.738]
[1744579970552,6.2751,1593.6,1593.4,7.80075096]
[1744579971743,6.2751,1593.6,1593.4,7.738]
[1744579972043,6.27549,1593.5,1593.4,7.738]
[1744579972779,12.55121,1593.5,1593.1,17.40055011]
[1744579972979,6.27591,1593.4,1593.1,6.29443532]
[1744579973280,12.55291,1593.3,1593.1,5.50333532]
[1744579973584,6.27629,1593.3,1593.1,5.50333532]
[1744579973786,6.27667,1593.2,1593.1,5.50333532]
[1744579974461,6.74675184,1593.2,1593.1,5.50333532]
[1744579974667,8.13115602,1593.2,1593.1,5.50333532]
[1744579975191,14.30115602,1593.2,1593.1,5.50333532]
[1744579975377,15.05405602,1593.2,1593.1,5.50333532]
[1744579975692,15.05405602,1593.2,1593.1,0.02]
[1744579976180,6.27934,1592.6,1592.4,5.48333532]
[1744579976382,6.2787,1592.7,1592.4,5.48333532]
[1744579976583,12.44767,1593.0,1592.4,5.54612268]
[1744579976888,7.0274,1593.8,1593.1,6.27706]
[1744579977071,6.27395,1593.9,1593.5,6.27521]
[1744579977385,13.30047,1594.0,1593.6,6.33767555]